[Event "Titled Tuesday Blitz August 15 Early 2023"]
[White "Degenbaev, Aziz"]
[Black "Badmatsyrenov, Oleg"]
[WhiteFideId "13802640"]
[BlackFideId "24115762"]
[WhiteElo "2546"]
[BlackElo "2747"]
[Result "0-1"]
[Round "7"]
[TimeControl "180+1"]
[Date "2023.08.15"]
[WhiteClock "0:00:03"]
[BlackClock "0:00:06"]
[Board "52"]

1. e4 {[%clk 0:02:55]}  c5 {[%clk 0:02:59]} 2. Nf3 {[%clk 0:02:54]}  e6 {[%clk 0:02:59]} 3. d4 {[%clk 0:02:54]}  cxd4 {[%clk 0:03:00]} 4. Nxd4 {[%clk 0:02:55]}  a6 {[%clk 0:03:00]} 5. c4 {[%clk 0:02:55]}  Nf6 {[%clk 0:03:00]} 6. Nc3 {[%clk 0:02:55]}  Qc7 {[%clk 0:03:00]} 7. a3 {[%clk 0:02:55]}  Nc6 {[%clk 0:03:00]} 8. Be3 {[%clk 0:02:33]}  Bd6 {[%clk 0:02:57]} 9. Be2 {[%clk 0:02:23]}  Be5 {[%clk 0:02:47]} 10. h3 {[%clk 0:02:11]}  O-O {[%clk 0:02:40]} 11. O-O {[%clk 0:02:10]}  d6 {[%clk 0:02:40]} 12. Rc1 {[%clk 0:02:08]}  Bxd4 {[%clk 0:02:37]} 13. Bxd4 {[%clk 0:02:07]}  Nxd4 {[%clk 0:02:38]} 14. Qxd4 {[%clk 0:02:07]}  e5 {[%clk 0:02:39]} 15. Qe3 {[%clk 0:01:58]}  Be6 {[%clk 0:02:36]} 16. Nd5 {[%clk 0:01:47]}  Bxd5 {[%clk 0:02:33]} 17. cxd5 {[%clk 0:01:46]}  Qd7 {[%clk 0:02:34]} 18. Bd3 {[%clk 0:01:34]}  Rfc8 {[%clk 0:02:33]} 19. Qb6 {[%clk 0:01:34]}  Kf8 {[%clk 0:02:29]} 20. b4 {[%clk 0:01:24]}  Ke7 {[%clk 0:02:29]} 21. b5 {[%clk 0:01:23]}  a5 {[%clk 0:02:21]} 22. a4 {[%clk 0:01:21]}  h6 {[%clk 0:01:53]} 23. g3 {[%clk 0:01:17]}  Qxh3 {[%clk 0:01:41]} 24. Qxb7+ {[%clk 0:01:15]}  Kf8 {[%clk 0:01:41]} 25. Be2 {[%clk 0:01:09]}  Qd7 {[%clk 0:01:37]} 26. Qxd7 {[%clk 0:01:01]}  Nxd7 {[%clk 0:01:38]} 27. Rxc8+ {[%clk 0:00:58]}  Rxc8 {[%clk 0:01:37]} 28. Bg4 {[%clk 0:00:59]}  Ke7 {[%clk 0:01:37]} 29. Rb1 {[%clk 0:00:50]}  Rc4 {[%clk 0:01:29]} 30. b6 {[%clk 0:00:37]}  Nb8 {[%clk 0:01:20]} 31. b7 {[%clk 0:00:24]}  Rxa4 {[%clk 0:01:17]} 32. Rc1 {[%clk 0:00:21]}  Rb4 {[%clk 0:01:16]} 33. Rc7+ {[%clk 0:00:20]}  Kf6 {[%clk 0:01:15]} 34. Bd1 {[%clk 0:00:18]}  Rb1 {[%clk 0:01:09]} 35. Kg2 {[%clk 0:00:12]}  Rxd1 {[%clk 0:01:10]} 36. Rc8 {[%clk 0:00:11]}  Rb1 {[%clk 0:01:03]} 37. Rxb8 {[%clk 0:00:10]}  a4 {[%clk 0:01:03]} 38. Rd8 {[%clk 0:00:07]}  Rxb7 {[%clk 0:01:00]} 39. Rxd6+ {[%clk 0:00:07]}  Kg5 {[%clk 0:00:57]} 40. Ra6 {[%clk 0:00:07]}  Rb4 {[%clk 0:00:57]} 41. Kf3 {[%clk 0:00:04]}  h5 {[%clk 0:00:51]} 42. Ra7 {[%clk 0:00:02]}  Kf6 {[%clk 0:00:49]} 43. Ra6+ {[%clk 0:00:02]}  Kg5 {[%clk 0:00:50]} 44. Ra7 {[%clk 0:00:02]}  Kg6 {[%clk 0:00:50]} 45. Ra6+ {[%clk 0:00:03]}  f6 {[%clk 0:00:51]} 46. Ra7 {[%clk 0:00:03]}  Kh6 {[%clk 0:00:41]} 47. Ke3 {[%clk 0:00:04]}  g5 {[%clk 0:00:33]} 48. d6 {[%clk 0:00:04]}  Rd4 {[%clk 0:00:33]} 49. d7 {[%clk 0:00:04]}  g4 {[%clk 0:00:24]} 50. Rxa4 {[%clk 0:00:02]}  Rxd7 {[%clk 0:00:24]} 51. f4 {[%clk 0:00:02]}  gxf3 {[%clk 0:00:24]} 52. Kxf3 {[%clk 0:00:03]}  Rd3+ {[%clk 0:00:23]} 53. Kg2 {[%clk 0:00:03]}  Rd4 {[%clk 0:00:23]} 54. Ra6 {[%clk 0:00:01]}  Kg5 {[%clk 0:00:23]} 55. Kf3 {[%clk 0:00:02]}  Rd3+ {[%clk 0:00:23]} 56. Kf2 {[%clk 0:00:03]}  Rd2+ {[%clk 0:00:18]} 57. Kf3 {[%clk 0:00:03]}  Rd3+ {[%clk 0:00:16]} 58. Kf2 {[%clk 0:00:03]}  Rb3 {[%clk 0:00:16]} 59. Ra8 {[%clk 0:00:03]}  Rb4 {[%clk 0:00:15]} 60. Kf3 {[%clk 0:00:03]}  Rb3+ {[%clk 0:00:15]} 61. Kf2 {[%clk 0:00:03]}  Kg6 {[%clk 0:00:11]} 62. Rg8+ {[%clk 0:00:04]}  Kf7 {[%clk 0:00:11]} 63. Rh8 {[%clk 0:00:05]}  Kg6 {[%clk 0:00:11]} 64. Rg8+ {[%clk 0:00:05]}  Kh7 {[%clk 0:00:12]} 65. Rf8 {[%clk 0:00:05]}  Kg7 {[%clk 0:00:13]} 66. Ra8 {[%clk 0:00:05]}  Rc3 {[%clk 0:00:13]} 67. Rb8 {[%clk 0:00:05]}  Rc4 {[%clk 0:00:13]} 68. Kf3 {[%clk 0:00:05]}  Rc1 {[%clk 0:00:13]} 69. Ra8 {[%clk 0:00:05]}  Rf1+ {[%clk 0:00:14]} 70. Kg2 {[%clk 0:00:05]}  Rb1 {[%clk 0:00:13]} 71. Kf3 {[%clk 0:00:05]}  Rh1 {[%clk 0:00:12]} 72. Kg2 {[%clk 0:00:05]}  Rd1 {[%clk 0:00:12]} 73. Kf3 {[%clk 0:00:05]}  Rd3+ {[%clk 0:00:12]} 74. Kf2 {[%clk 0:00:06]}  Rd7 {[%clk 0:00:12]} 75. Rb8 {[%clk 0:00:06]}  Kg6 {[%clk 0:00:13]} 76. Rg8+ {[%clk 0:00:06]}  Rg7 {[%clk 0:00:13]} 77. Rh8 {[%clk 0:00:06]}  Kg5 {[%clk 0:00:13]} 78. Kf3 {[%clk 0:00:06]}  Rg6 {[%clk 0:00:13]} 79. Re8 {[%clk 0:00:06]}  Rg7 {[%clk 0:00:12]} 80. Rh8 {[%clk 0:00:07]}  Kg6 {[%clk 0:00:11]} 81. Kf2 {[%clk 0:00:06]}  Rc7 {[%clk 0:00:10]} 82. Kf3 {[%clk 0:00:06]}  Rh7 {[%clk 0:00:11]} 83. Rg8+ {[%clk 0:00:06]}  Rg7 {[%clk 0:00:11]} 84. Rh8 {[%clk 0:00:07]}  Ra7 {[%clk 0:00:08]} 85. Kf2 {[%clk 0:00:06]}  Ra2+ {[%clk 0:00:08]} 86. Kf3 {[%clk 0:00:06]}  Ra7 {[%clk 0:00:08]} 87. Rg8+ {[%clk 0:00:06]}  Kh7 {[%clk 0:00:08]} 88. Rf8 {[%clk 0:00:07]}  Kg7 {[%clk 0:00:09]} 89. Rb8 {[%clk 0:00:07]}  Rf7 {[%clk 0:00:08]} 90. Re8 {[%clk 0:00:06]}  Rf8 {[%clk 0:00:08]} 91. Re7+ {[%clk 0:00:06]}  Kg6 {[%clk 0:00:09]} 92. Rb7 {[%clk 0:00:05]}  Rh8 {[%clk 0:00:09]} 93. Rc7 {[%clk 0:00:04]}  h4 {[%clk 0:00:10]} 94. gxh4 {[%clk 0:00:05]}  Rxh4 {[%clk 0:00:10]} 95. Rb7 {[%clk 0:00:05]}  Rf4+ {[%clk 0:00:09]} 96. Ke3 {[%clk 0:00:06]}  Rh4 {[%clk 0:00:10]} 97. Rb8 {[%clk 0:00:06]}  Rh3+ {[%clk 0:00:10]} 98. Kf2 {[%clk 0:00:07]}  Kg5 {[%clk 0:00:11]} 99. Rf8 {[%clk 0:00:08]}  Rb3 {[%clk 0:00:10]} 100. Ke2 {[%clk 0:00:08]}  Rb4 {[%clk 0:00:10]} 101. Kf3 {[%clk 0:00:07]}  Rb3+ {[%clk 0:00:10]} 102. Kf2 {[%clk 0:00:08]}  Ra3 {[%clk 0:00:10]} 103. Rf7 {[%clk 0:00:07]}  Rc3 {[%clk 0:00:10]} 104. Rf8 {[%clk 0:00:08]}  Kg6 {[%clk 0:00:09]} 105. Rg8+ {[%clk 0:00:07]}  Kf7 {[%clk 0:00:09]} 106. Rb8 {[%clk 0:00:08]}  Ra3 {[%clk 0:00:08]} 107. Rb7+ {[%clk 0:00:07]}  Kg6 {[%clk 0:00:08]} 108. Rb8 {[%clk 0:00:07]}  Kg5 {[%clk 0:00:09]} 109. Rf8 {[%clk 0:00:07]}  Kf4 {[%clk 0:00:09]} 110. Rxf6+ {[%clk 0:00:07]}  Kxe4 {[%clk 0:00:10]} 111. Rf8 {[%clk 0:00:07]}  Ra2+ {[%clk 0:00:10]} 112. Ke1 {[%clk 0:00:07]}  Ke3 {[%clk 0:00:11]} 113. Kd1 {[%clk 0:00:07]}  Ra1+ {[%clk 0:00:11]} 114. Kc2 {[%clk 0:00:07]}  e4 {[%clk 0:00:10]} 115. Rh8 {[%clk 0:00:07]}  Ra2+ {[%clk 0:00:10]} 116. Kd1 {[%clk 0:00:07]}  Ra1+ {[%clk 0:00:08]} 117. Kc2 {[%clk 0:00:07]}  Rf1 {[%clk 0:00:09]} 118. Rh3+ {[%clk 0:00:04]}  Rf3 {[%clk 0:00:09]} 119. Rh4 {[%clk 0:00:05]}  Rf2+ {[%clk 0:00:08]} 120. Kc3 {[%clk 0:00:01]}  Kf3 {[%clk 0:00:06]} 121. Rh8 {[%clk 0:00:01]}  Ke2 {[%clk 0:00:04]} 122. Re8 {[%clk 0:00:01]}  e3 {[%clk 0:00:05]} 123. Kc2 {[%clk 0:00:02]}  Rf4 {[%clk 0:00:04]} 124. Rh8 {[%clk 0:00:02]}  Rc4+ {[%clk 0:00:03]} 125. Kb3 {[%clk 0:00:03]}  Rc6 {[%clk 0:00:04]} 126. Rh2+ {[%clk 0:00:03]}  Kd1 {[%clk 0:00:04]} 127. Rh1+ {[%clk 0:00:03]}  Kd2 {[%clk 0:00:05]} 128. Rh8 {[%clk 0:00:03]}  e2 {[%clk 0:00:05]} 129. Rd8+ {[%clk 0:00:04]}  Ke1 {[%clk 0:00:05]} 130. Re8 {[%clk 0:00:05]}  Rc5 {[%clk 0:00:06]} 131. Re7 {[%clk 0:00:04]}  Rd5 {[%clk 0:00:05]} 132. Kc4 {[%clk 0:00:04]}  Rd2 {[%clk 0:00:05]} 133. Kc3 {[%clk 0:00:05]}  Kd1 {[%clk 0:00:05]} 134. Ra7 {[%clk 0:00:03]}  e1=Q {[%clk 0:00:06]} 0-1


[Site "https://www.chess.com"]

[Event "Titled Tuesday Blitz August 15 Early 2023"]
[White "Mammadzada, Gunay"]
[Black "Volkov, Maksim"]
[WhiteFideId "13403729"]
[BlackFideId "54123070"]
[WhiteElo "2534"]
[BlackElo "2746"]
[Result "1-0"]
[Round "7"]
[TimeControl "180+1"]
[Date "2023.08.15"]
[WhiteClock "0:00:02"]
[BlackClock "0:00:15"]
[Board "53"]

1. e4 {[%clk 0:02:50]}  c5 {[%clk 0:02:59]} 2. Nf3 {[%clk 0:02:50]}  d6 {[%clk 0:03:00]} 3. d4 {[%clk 0:02:49]}  cxd4 {[%clk 0:03:00]} 4. Nxd4 {[%clk 0:02:50]}  Nf6 {[%clk 0:03:01]} 5. Nc3 {[%clk 0:02:51]}  a6 {[%clk 0:03:01]} 6. Be3 {[%clk 0:02:47]}  e5 {[%clk 0:03:01]} 7. Nb3 {[%clk 0:02:47]}  Be7 {[%clk 0:03:00]} 8. Rg1 {[%clk 0:02:45]}  h5 {[%clk 0:02:53]} 9. h3 {[%clk 0:02:45]}  Be6 {[%clk 0:02:42]} 10. g4 {[%clk 0:02:44]}  hxg4 {[%clk 0:02:42]} 11. hxg4 {[%clk 0:02:45]}  g6 {[%clk 0:02:14]} 12. g5 {[%clk 0:02:22]}  Nh5 {[%clk 0:02:11]} 13. Qf3 {[%clk 0:02:09]}  Nd7 {[%clk 0:01:53]} 14. O-O-O {[%clk 0:02:08]}  Qc7 {[%clk 0:01:51]} 15. Kb1 {[%clk 0:01:46]}  b5 {[%clk 0:01:48]} 16. Nd5 {[%clk 0:01:46]}  Bxd5 {[%clk 0:01:48]} 17. exd5 {[%clk 0:01:47]}  Nb6 {[%clk 0:01:43]} 18. Na5 {[%clk 0:01:20]}  Rc8 {[%clk 0:01:43]} 19. c3 {[%clk 0:01:16]}  Nxd5 {[%clk 0:01:38]} 20. Qxd5 {[%clk 0:01:17]}  Qxa5 {[%clk 0:01:38]} 21. Bh3 {[%clk 0:01:15]}  Rb8 {[%clk 0:01:25]} 22. Qc6+ {[%clk 0:01:14]}  Kf8 {[%clk 0:01:26]} 23. Ba7 {[%clk 0:00:53]}  Re8 {[%clk 0:01:12]} 24. Bd7 {[%clk 0:00:50]}  Qd8 {[%clk 0:01:11]} 25. Bb6 {[%clk 0:00:40]}  Qa8 {[%clk 0:01:08]} 26. Bxe8 {[%clk 0:00:40]}  Qxe8 {[%clk 0:01:08]} 27. Qb7 {[%clk 0:00:30]}  Kg7 {[%clk 0:01:01]} 28. Be3 {[%clk 0:00:30]}  a5 {[%clk 0:00:52]} 29. Qb6 {[%clk 0:00:26]}  a4 {[%clk 0:00:51]} 30. a3 {[%clk 0:00:26]}  Qd7 {[%clk 0:00:50]} 31. Rd5 {[%clk 0:00:22]}  Nf4 {[%clk 0:00:40]} 32. Bxf4 {[%clk 0:00:19]}  Qf5+ {[%clk 0:00:41]} 33. Ka1 {[%clk 0:00:17]}  Qxf4 {[%clk 0:00:41]} 34. Rxb5 {[%clk 0:00:15]}  Rh2 {[%clk 0:00:41]} 35. Rb4 {[%clk 0:00:11]}  Qd2 {[%clk 0:00:41]} 36. Qe3 {[%clk 0:00:07]}  Qc2 {[%clk 0:00:42]} 37. Rf1 {[%clk 0:00:06]}  Rg2 {[%clk 0:00:37]} 38. f4 {[%clk 0:00:06]}  Re2 {[%clk 0:00:28]} 39. Qg3 {[%clk 0:00:03]}  d5 {[%clk 0:00:25]} 40. Rb7 {[%clk 0:00:02]}  e4 {[%clk 0:00:23]} 41. f5 {[%clk 0:00:02]}  gxf5 {[%clk 0:00:18]} 42. Qe5+ {[%clk 0:00:02]}  Kg6 {[%clk 0:00:15]} 43. Qxe7 {[%clk 0:00:01]}  Kh5 {[%clk 0:00:15]} 44. Qxf7+ {[%clk 0:00:01]}  Kg4 {[%clk 0:00:16]} 45. Qxf5+ {[%clk 0:00:02]}  Kg3 {[%clk 0:00:16]} 46. g6 {[%clk 0:00:03]}  Rf2 {[%clk 0:00:15]} 47. Qg5+ {[%clk 0:00:03]}  Kh3 {[%clk 0:00:15]} 48. Rxf2 {[%clk 0:00:02]}  Qd1+ {[%clk 0:00:15]} 49. Ka2 {[%clk 0:00:02]}  Qb3+ {[%clk 0:00:15]} 50. Rxb3 {[%clk 0:00:02]} 1-0


[Site "https://www.chess.com"]

[Event "Titled Tuesday Blitz August 15 Early 2023"]
[White "Kashefi, Amir Hosein"]
[Black "Gritsenko, Nikolai"]
[WhiteFideId "12557935"]
[BlackFideId "14112493"]
[WhiteElo "2511"]
[BlackElo "2746"]
[Result "1-0"]
[Round "7"]
[TimeControl "180+1"]
[Date "2023.08.15"]
[WhiteClock "0:00:07"]
[BlackClock "0:00:00"]
[Board "54"]

1. d4 {[%clk 0:02:59]}  d5 {[%clk 0:02:59]} 2. c4 {[%clk 0:02:52]}  Nc6 {[%clk 0:02:59]} 3. cxd5 {[%clk 0:02:50]}  Qxd5 {[%clk 0:02:58]} 4. Nf3 {[%clk 0:02:50]}  e5 {[%clk 0:02:58]} 5. Nc3 {[%clk 0:02:49]}  Bb4 {[%clk 0:02:57]} 6. Bd2 {[%clk 0:02:41]}  Bxc3 {[%clk 0:02:56]} 7. Bxc3 {[%clk 0:02:41]}  e4 {[%clk 0:02:56]} 8. Ne5 {[%clk 0:02:40]}  Nge7 {[%clk 0:02:41]} 9. e3 {[%clk 0:02:37]}  Nxe5 {[%clk 0:02:38]} 10. dxe5 {[%clk 0:02:37]}  Bd7 {[%clk 0:02:33]} 11. Be2 {[%clk 0:02:22]}  O-O-O {[%clk 0:02:21]} 12. Qxd5 {[%clk 0:02:15]}  Nxd5 {[%clk 0:02:20]} 13. e6 {[%clk 0:02:14]}  Bxe6 {[%clk 0:02:15]} 14. Bxg7 {[%clk 0:02:12]}  Rhg8 {[%clk 0:02:14]} 15. Be5 {[%clk 0:02:12]}  f6 {[%clk 0:01:51]} 16. Bg3 {[%clk 0:02:11]}  Nb4 {[%clk 0:01:51]} 17. Rc1 {[%clk 0:01:59]}  c6 {[%clk 0:01:44]} 18. a3 {[%clk 0:01:58]}  Nd3+ {[%clk 0:01:44]} 19. Bxd3 {[%clk 0:01:58]}  Rxd3 {[%clk 0:01:44]} 20. O-O {[%clk 0:01:56]}  Rgd8 {[%clk 0:01:30]} 21. Bh4 {[%clk 0:01:47]}  Rf8 {[%clk 0:01:06]} 22. Rc5 {[%clk 0:01:30]}  Bd5 {[%clk 0:00:57]} 23. Rfc1 {[%clk 0:01:29]}  Kd7 {[%clk 0:00:53]} 24. h3 {[%clk 0:01:19]}  Ke6 {[%clk 0:00:48]} 25. Ra5 {[%clk 0:01:12]}  Ra8 {[%clk 0:00:39]} 26. Ra4 {[%clk 0:01:10]}  a5 {[%clk 0:00:32]} 27. Rd4 {[%clk 0:01:01]}  Rxd4 {[%clk 0:00:30]} 28. exd4 {[%clk 0:01:02]}  b5 {[%clk 0:00:30]} 29. Kf1 {[%clk 0:01:00]}  b4 {[%clk 0:00:30]} 30. Bg3 {[%clk 0:00:55]}  Ra6 {[%clk 0:00:17]} 31. Bc7 {[%clk 0:00:52]}  bxa3 {[%clk 0:00:15]} 32. bxa3 {[%clk 0:00:52]}  a4 {[%clk 0:00:16]} 33. Rb1 {[%clk 0:00:45]}  Bc4+ {[%clk 0:00:15]} 34. Ke1 {[%clk 0:00:44]}  Bb5 {[%clk 0:00:14]} 35. Kd2 {[%clk 0:00:42]}  Ra7 {[%clk 0:00:13]} 36. Bb6 {[%clk 0:00:40]}  Rg7 {[%clk 0:00:13]} 37. g3 {[%clk 0:00:40]}  f5 {[%clk 0:00:11]} 38. Ke3 {[%clk 0:00:37]}  h5 {[%clk 0:00:10]} 39. h4 {[%clk 0:00:37]}  Rg4 {[%clk 0:00:09]} 40. Bc7 {[%clk 0:00:35]}  Rg8 {[%clk 0:00:07]} 41. Rc1 {[%clk 0:00:33]}  Rg7 {[%clk 0:00:07]} 42. Be5 {[%clk 0:00:31]}  Rd7 {[%clk 0:00:07]} 43. Rc5 {[%clk 0:00:30]}  Rd5 {[%clk 0:00:06]} 44. Rc3 {[%clk 0:00:30]}  c5 {[%clk 0:00:05]} 45. Bh8 {[%clk 0:00:24]}  c4 {[%clk 0:00:05]} 46. Rc1 {[%clk 0:00:21]}  Rd7 {[%clk 0:00:05]} 47. Rb1 {[%clk 0:00:20]}  Rd5 {[%clk 0:00:04]} 48. Kd2 {[%clk 0:00:19]}  Kd7 {[%clk 0:00:04]} 49. Kc3 {[%clk 0:00:19]}  Kc6 {[%clk 0:00:04]} 50. Be5 {[%clk 0:00:18]}  Rd7 {[%clk 0:00:04]} 51. Rf1 {[%clk 0:00:16]}  Rb7 {[%clk 0:00:04]} 52. Rb1 {[%clk 0:00:16]}  Ba6 {[%clk 0:00:03]} 53. Rxb7 {[%clk 0:00:16]}  Kxb7 {[%clk 0:00:03]} 54. Kb4 {[%clk 0:00:15]}  Kc6 {[%clk 0:00:03]} 55. Kxa4 {[%clk 0:00:14]}  Kd5 {[%clk 0:00:02]} 56. Kb4 {[%clk 0:00:15]}  Bc8 {[%clk 0:00:02]} 57. a4 {[%clk 0:00:14]}  Bd7 {[%clk 0:00:03]} 58. a5 {[%clk 0:00:14]}  Bc6 {[%clk 0:00:03]} 59. a6 {[%clk 0:00:12]}  Ba8 {[%clk 0:00:03]} 60. a7 {[%clk 0:00:12]}  Bc6 {[%clk 0:00:03]} 61. Kc3 {[%clk 0:00:10]}  Ba8 {[%clk 0:00:03]} 62. Bf4 {[%clk 0:00:10]}  Bb7 {[%clk 0:00:03]} 63. Be3 {[%clk 0:00:10]}  Ba8 {[%clk 0:00:04]} 64. Kb4 {[%clk 0:00:11]}  Bb7 {[%clk 0:00:03]} 65. Kb5 {[%clk 0:00:11]}  c3 {[%clk 0:00:03]} 66. Kb4 {[%clk 0:00:10]}  c2 {[%clk 0:00:02]} 67. Kc3 {[%clk 0:00:10]}  Ba8 {[%clk 0:00:02]} 68. Kxc2 {[%clk 0:00:10]}  Kc4 {[%clk 0:00:03]} 69. Kd2 {[%clk 0:00:10]}  Bb7 {[%clk 0:00:03]} 70. Ke1 {[%clk 0:00:10]}  Ba8 {[%clk 0:00:03]} 71. Kd1 {[%clk 0:00:10]}  Kd3 {[%clk 0:00:03]} 72. Kc1 {[%clk 0:00:09]}  Kc3 {[%clk 0:00:04]} 73. Kb1 {[%clk 0:00:08]}  Kb3 {[%clk 0:00:04]} 74. Ka1 {[%clk 0:00:08]}  Ka3 {[%clk 0:00:04]} 75. Bg5 {[%clk 0:00:08]}  Kb3 {[%clk 0:00:04]} 76. Be7 {[%clk 0:00:08]}  Bd5 {[%clk 0:00:04]} 77. Bc5 {[%clk 0:00:08]}  Ba8 {[%clk 0:00:03]} 78. Kb1 {[%clk 0:00:08]}  Bd5 {[%clk 0:00:04]} 79. Kc1 {[%clk 0:00:09]}  Kc3 {[%clk 0:00:04]} 80. Kd1 {[%clk 0:00:09]}  Kd3 {[%clk 0:00:05]} 81. Ke1 {[%clk 0:00:09]}  e3 {[%clk 0:00:05]} 82. fxe3 {[%clk 0:00:07]}  Kxe3 {[%clk 0:00:05]} 83. Kd1 {[%clk 0:00:02]}  Kd3 {[%clk 0:00:05]} 84. Kc1 {[%clk 0:00:02]}  Kc3 {[%clk 0:00:06]} 85. Bb6 {[%clk 0:00:03]}  Ba8 {[%clk 0:00:05]} 86. Bc5 {[%clk 0:00:02]}  Bd5 {[%clk 0:00:04]} 87. Kd1 {[%clk 0:00:02]}  Kd3 {[%clk 0:00:05]} 88. Ke1 {[%clk 0:00:03]}  Ke3 {[%clk 0:00:05]} 89. Kf1 {[%clk 0:00:03]}  Kf3 {[%clk 0:00:05]} 90. Bd6 {[%clk 0:00:03]}  Ke3 {[%clk 0:00:05]} 91. Be5 {[%clk 0:00:04]}  Ba8 {[%clk 0:00:04]} 92. Kg1 {[%clk 0:00:04]}  Bd5 {[%clk 0:00:04]} 93. Kf1 {[%clk 0:00:04]}  Ba8 {[%clk 0:00:04]} 94. Ke1 {[%clk 0:00:04]}  Bd5 {[%clk 0:00:04]} 95. Kd1 {[%clk 0:00:05]}  Kd3 {[%clk 0:00:05]} 96. Kc1 {[%clk 0:00:05]}  Kc3 {[%clk 0:00:05]} 97. Bf6 {[%clk 0:00:05]}  Kd3 {[%clk 0:00:03]} 98. Kb2 {[%clk 0:00:05]}  Kc4 {[%clk 0:00:03]} 99. Ka3 {[%clk 0:00:05]}  Kb5 {[%clk 0:00:03]} 100. Be5 {[%clk 0:00:05]}  Ba8 {[%clk 0:00:03]} 101. Bd6 {[%clk 0:00:05]}  Bd5 {[%clk 0:00:03]} 102. Bc5 {[%clk 0:00:05]}  Ba8 {[%clk 0:00:03]} 103. Kb3 {[%clk 0:00:06]}  Bd5+ {[%clk 0:00:03]} 104. Kc3 {[%clk 0:00:07]}  Be4 {[%clk 0:00:02]} 105. Kd2 {[%clk 0:00:07]}  Kc4 {[%clk 0:00:02]} 106. Ke3 {[%clk 0:00:07]}  Kd5 {[%clk 0:00:02]} 107. Kf4 {[%clk 0:00:08]}  Ke6 {[%clk 0:00:02]} 108. Kg5 {[%clk 0:00:08]}  Bf3 {[%clk 0:00:03]} 109. Bb6 {[%clk 0:00:05]}  Ba8 {[%clk 0:00:02]} 110. Kxh5 {[%clk 0:00:05]}  Kf6 {[%clk 0:00:02]} 111. Bc7 {[%clk 0:00:05]}  Bf3+ {[%clk 0:00:01]} 112. Kh6 {[%clk 0:00:05]}  Ba8 {[%clk 0:00:02]} 113. Be5+ {[%clk 0:00:05]}  Kf7 {[%clk 0:00:02]} 114. Kg5 {[%clk 0:00:06]}  Ke6 {[%clk 0:00:02]} 115. h5 {[%clk 0:00:07]}  Be4 {[%clk 0:00:01]} 116. h6 {[%clk 0:00:07]}  f4 {[%clk 0:00:01]} 117. Kxf4 {[%clk 0:00:07]}  Ba8 {[%clk 0:00:00]} 118. h7 {[%clk 0:00:07]} 1-0


[Site "https://www.chess.com"]

[Event "Titled Tuesday Blitz August 15 Early 2023"]
[White "Shcherbin, Matvei"]
[Black "feuervogel1000000"]
[WhiteFideId "24125164"]
[WhiteElo "2741"]
[BlackElo "2508"]
[Result "1-0"]
[Round "7"]
[TimeControl "180+1"]
[Date "2023.08.15"]
[WhiteClock "0:00:28"]
[BlackClock "0:01:08"]
[Board "55"]

1. e4 {[%clk 0:03:00]}  c5 {[%clk 0:02:52]} 2. c3 {[%clk 0:03:00]}  Nf6 {[%clk 0:02:51]} 3. e5 {[%clk 0:03:00]}  Nd5 {[%clk 0:02:49]} 4. d4 {[%clk 0:03:00]}  cxd4 {[%clk 0:02:49]} 5. Nf3 {[%clk 0:03:01]}  d6 {[%clk 0:02:49]} 6. cxd4 {[%clk 0:03:01]}  e6 {[%clk 0:02:48]} 7. a3 {[%clk 0:03:00]}  b6 {[%clk 0:02:46]} 8. Bd3 {[%clk 0:02:59]}  Bb7 {[%clk 0:02:46]} 9. O-O {[%clk 0:02:59]}  Nd7 {[%clk 0:02:45]} 10. Qe2 {[%clk 0:02:55]}  Be7 {[%clk 0:02:42]} 11. Qe4 {[%clk 0:02:51]}  dxe5 {[%clk 0:02:32]} 12. dxe5 {[%clk 0:02:52]}  Nc5 {[%clk 0:02:32]} 13. Bb5+ {[%clk 0:02:51]}  Kf8 {[%clk 0:02:33]} 14. Qe2 {[%clk 0:02:26]}  Nb3 {[%clk 0:02:20]} 15. Ra2 {[%clk 0:02:26]}  Rc8 {[%clk 0:02:20]} 16. Nc3 {[%clk 0:01:57]}  Rxc3 {[%clk 0:02:19]} 17. bxc3 {[%clk 0:01:58]}  Nxc3 {[%clk 0:02:19]} 18. Qb2 {[%clk 0:01:46]}  Nxa2 {[%clk 0:02:11]} 19. Qxb3 {[%clk 0:01:36]}  Nxc1 {[%clk 0:02:10]} 20. Rxc1 {[%clk 0:01:36]}  g5 {[%clk 0:02:09]} 21. Rd1 {[%clk 0:01:25]}  Qc8 {[%clk 0:01:58]} 22. Qe3 {[%clk 0:01:21]}  Qc5 {[%clk 0:01:45]} 23. Qxc5 {[%clk 0:01:08]}  Bxc5 {[%clk 0:01:44]} 24. Nxg5 {[%clk 0:00:55]}  Bd5 {[%clk 0:01:30]} 25. Rd3 {[%clk 0:00:44]}  h6 {[%clk 0:01:22]} 26. Nh3 {[%clk 0:00:41]}  Rg8 {[%clk 0:01:19]} 27. Nf4 {[%clk 0:00:41]}  Be4 {[%clk 0:01:19]} 28. Rd8+ {[%clk 0:00:33]}  Kg7 {[%clk 0:01:16]} 29. Nh5+ {[%clk 0:00:29]}  Kg6 {[%clk 0:01:08]} 30. Rxg8+ {[%clk 0:00:28]} 1-0


[Site "https://www.chess.com"]

[Event "Titled Tuesday Blitz August 15 Early 2023"]
[White "Wong, Yinn Long"]
[Black "Molenda, Marcin"]
[WhiteFideId "5707684"]
[BlackFideId "1173065"]
[WhiteElo "2727"]
[BlackElo "2479"]
[Result "1-0"]
[Round "7"]
[TimeControl "180+1"]
[Date "2023.08.15"]
[WhiteClock "0:00:11"]
[BlackClock "0:00:00"]
[Board "56"]

1. Nf3 {[%clk 0:02:57]}  d5 {[%clk 0:02:58]} 2. g3 {[%clk 0:02:56]}  c5 {[%clk 0:02:56]} 3. Bg2 {[%clk 0:02:54]}  Nf6 {[%clk 0:02:54]} 4. O-O {[%clk 0:02:51]}  e6 {[%clk 0:02:51]} 5. d3 {[%clk 0:02:50]}  Be7 {[%clk 0:02:50]} 6. Nbd2 {[%clk 0:02:50]}  O-O {[%clk 0:02:49]} 7. e4 {[%clk 0:02:50]}  Nc6 {[%clk 0:02:49]} 8. Re1 {[%clk 0:02:46]}  b5 {[%clk 0:02:37]} 9. e5 {[%clk 0:02:46]}  Nd7 {[%clk 0:02:35]} 10. Nf1 {[%clk 0:02:47]}  b4 {[%clk 0:02:33]} 11. h4 {[%clk 0:02:46]}  a5 {[%clk 0:02:31]} 12. h5 {[%clk 0:02:46]}  h6 {[%clk 0:02:31]} 13. N1h2 {[%clk 0:02:46]}  Ba6 {[%clk 0:02:04]} 14. Ng4 {[%clk 0:02:44]}  Re8 {[%clk 0:02:00]} 15. Nxh6+ {[%clk 0:02:02]}  gxh6 {[%clk 0:02:01]} 16. Bxh6 {[%clk 0:02:02]}  Kh7 {[%clk 0:01:51]} 17. Bf4 {[%clk 0:02:01]}  Rg8 {[%clk 0:01:50]} 18. Qd2 {[%clk 0:01:48]}  Nd4 {[%clk 0:01:49]} 19. Nxd4 {[%clk 0:01:43]}  cxd4 {[%clk 0:01:50]} 20. Bf3 {[%clk 0:01:29]}  Bg5 {[%clk 0:01:44]} 21. Kg2 {[%clk 0:01:28]}  Rc8 {[%clk 0:01:41]} 22. Re2 {[%clk 0:01:21]}  Kh6 {[%clk 0:01:23]} 23. Rh1 {[%clk 0:01:21]}  Rg7 {[%clk 0:01:15]} 24. Rh4 {[%clk 0:01:19]}  Bxf4 {[%clk 0:01:15]} 25. Qxf4+ {[%clk 0:01:17]}  Qg5 {[%clk 0:01:15]} 26. Qxd4 {[%clk 0:01:17]}  Rcg8 {[%clk 0:01:05]} 27. Rg4 {[%clk 0:01:17]}  Qc1 {[%clk 0:01:02]} 28. Rxg7 {[%clk 0:01:09]}  Rxg7 {[%clk 0:01:02]} 29. Re3 {[%clk 0:01:10]}  Rg5 {[%clk 0:00:53]} 30. Qa7 {[%clk 0:00:51]}  Bb5 {[%clk 0:00:44]} 31. Qd4 {[%clk 0:00:42]}  Qxc2 {[%clk 0:00:39]} 32. Qf4 {[%clk 0:00:43]}  Qc8 {[%clk 0:00:22]} 33. Qxf7 {[%clk 0:00:42]}  Qg8 {[%clk 0:00:23]} 34. Qe7 {[%clk 0:00:38]}  a4 {[%clk 0:00:16]} 35. Bd1 {[%clk 0:00:37]}  a3 {[%clk 0:00:16]} 36. Qxb4 {[%clk 0:00:35]}  axb2 {[%clk 0:00:16]} 37. Qxb5 {[%clk 0:00:34]}  d4 {[%clk 0:00:16]} 38. Re4 {[%clk 0:00:31]}  Qb8 {[%clk 0:00:13]} 39. Qxb8 {[%clk 0:00:24]}  Nxb8 {[%clk 0:00:13]} 40. Bc2 {[%clk 0:00:25]}  Nc6 {[%clk 0:00:13]} 41. Bb1 {[%clk 0:00:14]}  Rg7 {[%clk 0:00:09]} 42. Re2 {[%clk 0:00:13]}  Rb7 {[%clk 0:00:09]} 43. g4 {[%clk 0:00:12]}  Kg5 {[%clk 0:00:09]} 44. Kg3 {[%clk 0:00:13]}  Rb5 {[%clk 0:00:06]} 45. f4+ {[%clk 0:00:13]}  Kh6 {[%clk 0:00:06]} 46. Kh4 {[%clk 0:00:11]}  Ne7 {[%clk 0:00:04]} 47. Rc2 {[%clk 0:00:11]}  Nd5 {[%clk 0:00:03]} 48. Rc6 {[%clk 0:00:11]}  Nc3 {[%clk 0:00:00]} 49. Rc7 {[%clk 0:00:11]} 1-0


[Site "https://www.chess.com"]